[Event "*** Titled Tuesday 3|2 Blitz"]
[Site "Chess.com"]
[Date "2017.06.06"]
[Round "4"]
[White "chessking2151"]
[Black "LawrenceTrent"]
[Result "1-0"]
[WhiteElo "2346"]
[BlackElo "2402"]
[TimeControl "180+2"]
[EndTime "14:37:40 PDT"]
[Termination "chessking2151 won by resignation"]

1. e4 {[%clk 0:03:02]} 1... c5 {[%clk 0:02:56.2]} 2. c3 {[%clk 0:02:58.5]} 2...
Qa5 {[%clk 0:02:45.7]} 3. g3 {[%clk 0:02:56.3]} 3... Nc6 {[%clk 0:02:42.3]} 4.
Bg2 {[%clk 0:02:56.8]} 4... g6 {[%clk 0:02:42.7]} 5. Ne2 {[%clk 0:02:57.8]} 5...
Bg7 {[%clk 0:02:42.8]} 6. O-O {[%clk 0:02:59.1]} 6... d6 {[%clk 0:02:44]} 7. d4
{[%clk 0:03:00.2]} 7... cxd4 {[%clk 0:02:45.3]} 8. cxd4 {[%clk 0:03:01.5]} 8...
Qh5 {[%clk 0:02:44.2]} 9. Nbc3 {[%clk 0:02:52]} 9... Nf6 {[%clk 0:02:40.7]} 10.
d5 {[%clk 0:02:21]} 10... Ne5 {[%clk 0:02:37.7]} 11. Nd4 {[%clk 0:02:15]} 11...
Qxd1 {[%clk 0:02:33.3]} 12. Rxd1 {[%clk 0:02:11.8]} 12... O-O {[%clk 0:02:31.8]}
13. f4 {[%clk 0:01:58.9]} 13... Ned7 {[%clk 0:02:24.1]} 14. h3 {[%clk
0:01:49.2]} 14... a6 {[%clk 0:02:07.5]} 15. a4 {[%clk 0:01:46.7]} 15... Ne8
{[%clk 0:02:02.6]} 16. Be3 {[%clk 0:01:44.8]} 16... Nb6 {[%clk 0:01:20.5]} 17.
b3 {[%clk 0:01:39.3]} 17... Bd7 {[%clk 0:01:20.5]} 18. a5 {[%clk 0:01:38.8]}
18... Nc8 {[%clk 0:01:21.5]} 19. Rac1 {[%clk 0:01:37.4]} 19... Na7 {[%clk
0:01:22.7]} 20. Na4 {[%clk 0:01:31.1]} 20... Bxa4 {[%clk 0:01:20.8]} 21. bxa4
{[%clk 0:01:31]} 21... Rc8 {[%clk 0:01:20.1]} 22. Rxc8 {[%clk 0:01:30.8]} 22...
Nxc8 {[%clk 0:01:21.4]} 23. Rc1 {[%clk 0:01:29.2]} 23... Nf6 {[%clk 0:01:16]}
24. Rc7 {[%clk 0:01:24.6]} 24... Rd8 {[%clk 0:01:16.9]} 25. Rxb7 {[%clk
0:01:21.8]} 25... Rd7 {[%clk 0:01:18.4]} 26. Rb8 {[%clk 0:01:22.1]} 26... Rc7
{[%clk 0:01:19.8]} 27. Nc6 {[%clk 0:01:23.1]} 27... Bf8 {[%clk 0:01:16.2]} 28.
Bb6 {[%clk 0:01:21.1]} 28... Nxb6 {[%clk 0:00:58.5]} 29. axb6 {[%clk 0:01:18.7]}
29... Rd7 {[%clk 0:00:59.9]} 30. b7 {[%clk 0:01:18.6]} 30... Kg7 {[%clk
0:00:59.2]} 31. Na5 {[%clk 0:00:43.5]} 1-0

[Event "*** Titled Tuesday 3|2 Blitz"]
[Site "Chess.com"]
[Date "2017.06.06"]
[Round "4"]
[White "angieflynn"]
[Black "WinnieTPooh"]
[Result "1-0"]
[WhiteElo "1782"]
[BlackElo "1926"]
[TimeControl "180+2"]
[EndTime "14:37:41 PDT"]
[Termination "angieflynn won by resignation"]

1. c4 {[%clk 0:03:02]} 1... b6 {[%clk 0:02:58.1]} 2. Nf3 {[%clk 0:03:02.9]} 2...
c5 {[%clk 0:02:58.4]} 3. g3 {[%clk 0:03:03.2]} 3... Bb7 {[%clk 0:02:58.1]} 4.
Bg2 {[%clk 0:03:04.2]} 4... Nf6 {[%clk 0:02:57.6]} 5. b4 {[%clk 0:03:05.3]} 5...
cxb4 {[%clk 0:02:58.4]} 6. a3 {[%clk 0:03:05.7]} 6... e6 {[%clk 0:02:58.5]} 7.
Qb3 {[%clk 0:03:03.8]} 7... Na6 {[%clk 0:02:51.4]} 8. O-O {[%clk 0:02:52.4]}
8... d5 {[%clk 0:02:50.6]} 9. d3 {[%clk 0:02:47.4]} 9... Be7 {[%clk 0:02:17.9]}
10. Bb2 {[%clk 0:02:44.3]} 10... O-O {[%clk 0:02:15.1]} 11. Nbd2 {[%clk
0:02:44.2]} 11... bxa3 {[%clk 0:02:14.2]} 12. Bxa3 {[%clk 0:02:40.5]} 12... Bxa3
{[%clk 0:02:13.9]} 13. Rxa3 {[%clk 0:02:40.7]} 13... Nc5 {[%clk 0:02:14.7]} 14.
Qa2 {[%clk 0:02:37.8]} 14... a6 {[%clk 0:02:01.5]} 15. Ne5 {[%clk 0:02:33.9]}
15... dxc4 {[%clk 0:01:48.8]} 16. Bxb7 {[%clk 0:02:23.1]} 16... Nxb7 {[%clk
0:01:50.7]} 17. Ndxc4 {[%clk 0:02:23.5]} 17... b5 {[%clk 0:01:41.9]} 18. Na5
{[%clk 0:02:21]} 18... Nc5 {[%clk 0:01:20.6]} 19. Nac6 {[%clk 0:02:14.9]} 19...
Qb6 {[%clk 0:01:14.9]} 20. Ra1 {[%clk 0:02:04.3]} 20... Na4 {[%clk 0:01:03.1]}
21. Qb3 {[%clk 0:01:47]} 21... Qc7 {[%clk 0:00:41.4]} 22. d4 {[%clk 0:01:30.7]}
22... Rac8 {[%clk 0:00:20.4]} 23. Rxa4 {[%clk 0:01:19]} 23... bxa4 {[%clk
0:00:21.3]} 24. Rxa4 {[%clk 0:01:15]} 24... Ra8 {[%clk 0:00:21.7]} 25. Qc4
{[%clk 0:01:10.7]} 25... Qb6 {[%clk 0:00:19.2]} 26. e4 {[%clk 0:01:00.9]} 26...
Qb1+ {[%clk 0:00:15.3]} 27. Kg2 {[%clk 0:00:56.4]} 27... Qxe4+ {[%clk
0:00:16.4]} 28. f3 {[%clk 0:00:57.4]} 28... Qd5 {[%clk 0:00:16.5]} 29. Ne7+
{[%clk 0:00:57.2]} 29... Kh8 {[%clk 0:00:17.5]} 30. Nxd5 {[%clk 0:00:58.9]}
30... exd5 {[%clk 0:00:18.8]} 31. Qc5 {[%clk 0:00:56.7]} 31... Rfc8 {[%clk
0:00:19.2]} 32. Qe7 {[%clk 0:00:55.7]} 32... Rc2+ {[%clk 0:00:19.4]} 33. Kh3
{[%clk 0:00:55.8]} 1-0

[Event "*** Titled Tuesday 3|2 Blitz"]
[Site "Chess.com"]
[Date "2017.06.06"]
[Round "4"]
[White "Wolverine_master"]
[Black "yosephtaher"]
[Result "0-1"]
[WhiteElo "1988"]
[BlackElo "2556"]
[TimeControl "180+2"]
[EndTime "14:37:48 PDT"]
[Termination "yosephtaher won by resignation"]

1. Nf3 {[%clk 0:03:02]} 1... g6 {[%clk 0:03:00.7]} 2. g3 {[%clk 0:03:02.9]} 2...
Bg7 {[%clk 0:03:02]} 3. c4 {[%clk 0:03:04.6]} 3... e5 {[%clk 0:03:03.3]} 4. Nc3
{[%clk 0:03:04.4]} 4... Nc6 {[%clk 0:03:04.5]} 5. d3 {[%clk 0:03:04.6]} 5...
Nge7 {[%clk 0:03:05.8]} 6. Bg2 {[%clk 0:03:05.9]} 6... d6 {[%clk 0:03:07.1]} 7.
O-O {[%clk 0:03:06.8]} 7... h6 {[%clk 0:03:08.7]} 8. Rb1 {[%clk 0:03:07.9]} 8...
Be6 {[%clk 0:03:09]} 9. b4 {[%clk 0:03:09]} 9... Qd7 {[%clk 0:03:10.4]} 10. b5
{[%clk 0:03:10.4]} 10... Nd8 {[%clk 0:03:11.2]} 11. Re1 {[%clk 0:03:11.3]} 11...
f5 {[%clk 0:03:10.6]} 12. e3 {[%clk 0:03:09.4]} 12... O-O {[%clk 0:03:11.3]} 13.
Nd2 {[%clk 0:03:06.4]} 13... g5 {[%clk 0:03:11.9]} 14. Bb2 {[%clk 0:03:07.1]}
14... f4 {[%clk 0:03:11.5]} 15. Nd5 {[%clk 0:03:08.4]} 15... fxg3 {[%clk
0:03:11.1]} 16. fxg3 {[%clk 0:03:05.7]} 16... Nf5 {[%clk 0:03:12.4]} 17. e4
{[%clk 0:03:00.9]} 17... Nd4 {[%clk 0:03:12.9]} 18. Bxd4 {[%clk 0:03:01.1]}
18... exd4 {[%clk 0:03:13.6]} 19. Rf1 {[%clk 0:03:02.6]} 19... Nf7 {[%clk
0:03:13.4]} 20. Qh5 {[%clk 0:03:01.2]} 20... Ne5 {[%clk 0:03:14.1]} 21. Qe2
{[%clk 0:02:56.3]} 21... Bg4 {[%clk 0:03:12.9]} 22. Nf3 {[%clk 0:02:39.4]} 22...
Rf7 {[%clk 0:03:04]} 23. h3 {[%clk 0:02:23]} 23... Bxf3 {[%clk 0:03:02.5]} 24.
Bxf3 {[%clk 0:02:24.3]} 24... Qxh3 {[%clk 0:03:03.5]} 25. Qg2 {[%clk 0:02:25.4]}
25... Qxg2+ {[%clk 0:03:01.9]} 26. Kxg2 {[%clk 0:02:27.3]} 26... Nxd3 {[%clk
0:03:02.8]} 27. Bh5 {[%clk 0:02:24.4]} 27... Rxf1 {[%clk 0:03:02.7]} 28. Rxf1
{[%clk 0:02:26.3]} 28... Ne5 {[%clk 0:02:43.8]} 29. Nxc7 {[%clk 0:02:22.1]}
29... Rf8 {[%clk 0:02:43.3]} 30. Rxf8+ {[%clk 0:02:22.9]} 30... Bxf8 {[%clk
0:02:41.6]} 31. Ne6 {[%clk 0:02:23.4]} 31... Nxc4 {[%clk 0:02:41]} 32. Nxd4
{[%clk 0:02:19.6]} 32... Nd2 {[%clk 0:02:41.2]} 33. Bg6 {[%clk 0:02:08.6]} 33...
Kg7 {[%clk 0:02:41.2]} 34. Bf5 {[%clk 0:02:09]} 34... Kf6 {[%clk 0:02:42.5]} 35.
Ne6 {[%clk 0:01:48.9]} 35... Be7 {[%clk 0:02:39.3]} 36. Nd4 {[%clk 0:01:32.3]}
36... d5 {[%clk 0:02:38.5]} 37. Bc8 {[%clk 0:01:23.3]} 37... Ke5 {[%clk
0:02:37.6]} 38. Nf3+ {[%clk 0:01:22.8]} 38... Nxf3 {[%clk 0:02:37.7]} 39. Kxf3
{[%clk 0:01:22.2]} 39... dxe4+ {[%clk 0:02:39.6]} 40. Ke3 {[%clk 0:01:22.5]}
40... b6 {[%clk 0:02:40.9]} 41. g4 {[%clk 0:01:20.6]} 41... Bc5+ {[%clk
0:02:41.5]} 42. Ke2 {[%clk 0:01:21.7]} 42... Kf4 {[%clk 0:02:43.4]} 43. Bd7
{[%clk 0:01:21.2]} 43... e3 {[%clk 0:02:43.3]} 44. a4 {[%clk 0:01:21.9]} 44...
Kg3 {[%clk 0:02:43.9]} 45. Be6 {[%clk 0:01:21.9]} 45... Kh4 {[%clk 0:02:45.1]}
46. Kf3 {[%clk 0:01:22.5]} 46... h5 {[%clk 0:02:46]} 47. gxh5 {[%clk 0:01:21.3]}
47... Kxh5 {[%clk 0:02:47.9]} 48. Bc4 {[%clk 0:01:07.7]} 48... Kh4 {[%clk
0:02:47.8]} 49. Be6 {[%clk 0:01:07.5]} 49... g4+ {[%clk 0:02:47.1]} 50. Ke2
{[%clk 0:01:04.3]} 50... g3 {[%clk 0:02:43.7]} 51. Bc4 {[%clk 0:00:27.2]} 51...
g2 {[%clk 0:02:43.1]} 0-1

[Event "*** Titled Tuesday 3|2 Blitz"]
[Site "Chess.com"]
[Date "2017.06.06"]
[Round "4"]
[White "WeiYi1999"]
[Black "Setne007"]
[Result "1-0"]
[WhiteElo "2121"]
[BlackElo "2057"]
[TimeControl "180+2"]
[EndTime "14:37:49 PDT"]
[Termination "WeiYi1999 won on time"]

1. e4 {[%clk 0:03:02]} 1... e6 {[%clk 0:03:02]} 2. d4 {[%clk 0:03:01.2]} 2... d5
{[%clk 0:03:03.3]} 3. exd5 {[%clk 0:03:03.1]} 3... exd5 {[%clk 0:03:04]} 4. Nc3
{[%clk 0:03:05]} 4... c6 {[%clk 0:03:02.5]} 5. Bd3 {[%clk 0:03:06.9]} 5... Bd6
{[%clk 0:03:02.3]} 6. Nge2 {[%clk 0:03:08.8]} 6... Ne7 {[%clk 0:03:03.4]} 7. Be3
{[%clk 0:03:10.7]} 7... Bf5 {[%clk 0:03:03.6]} 8. Qd2 {[%clk 0:03:12.6]} 8...
Qd7 {[%clk 0:02:59.8]} 9. O-O-O {[%clk 0:03:13.7]} 9... Bxd3 {[%clk 0:02:55]}
10. Qxd3 {[%clk 0:03:13.4]} 10... Qf5 {[%clk 0:02:55.5]} 11. Qd2 {[%clk
0:03:12.5]} 11... O-O {[%clk 0:02:53.1]} 12. g4 {[%clk 0:03:11.2]} 12... Qf3
{[%clk 0:02:43.8]} 13. h4 {[%clk 0:02:45]} 13... Nd7 {[%clk 0:02:44.2]} 14. g5
{[%clk 0:02:41.3]} 14... Nf5 {[%clk 0:02:35.7]} 15. h5 {[%clk 0:02:37.1]} 15...
Nb6 {[%clk 0:02:34.6]} 16. h6 {[%clk 0:02:30.3]} 16... g6 {[%clk 0:02:32]} 17.
Kb1 {[%clk 0:02:27.9]} 17... Nc4 {[%clk 0:02:29.1]} 18. Qe1 {[%clk 0:02:26.1]}
18... Ncxe3 {[%clk 0:02:26.7]} 19. fxe3 {[%clk 0:02:28]} 19... Qxe3 {[%clk
0:02:26.4]} 20. Qf1 {[%clk 0:02:24.6]} 20... Rfe8 {[%clk 0:02:21.6]} 21. Rg1
{[%clk 0:02:21.6]} 21... b5 {[%clk 0:02:16.1]} 22. Rd3 {[%clk 0:02:14.6]} 22...
Qe6 {[%clk 0:02:11.5]} 23. Nf4 {[%clk 0:02:13.4]} 23... Bxf4 {[%clk 0:02:06.7]}
24. Qxf4 {[%clk 0:02:15.3]} 24... a5 {[%clk 0:01:58.8]} 25. Qd2 {[%clk
0:02:09.9]} 25... a4 {[%clk 0:01:57.7]} 26. Nd1 {[%clk 0:02:09.7]} 26... Qe2
{[%clk 0:01:50.8]} 27. Qc1 {[%clk 0:02:03.6]} 27... Qh2 {[%clk 0:01:32.8]} 28.
Ne3 {[%clk 0:01:57.4]} 28... Nxe3 {[%clk 0:01:00.6]} 29. Rxe3 {[%clk 0:01:59.3]}
29... Re4 {[%clk 0:00:37.6]} 30. Rxe4 {[%clk 0:01:54.8]} 30... dxe4 {[%clk
0:00:38.7]} 31. a3 {[%clk 0:01:52.6]} 31... Re8 {[%clk 0:00:38]} 32. c4 {[%clk
0:01:48.9]} 32... e3 {[%clk 0:00:32.4]} 33. d5 {[%clk 0:01:45]} 33... cxd5
{[%clk 0:00:23.2]} 34. cxd5 {[%clk 0:01:46.9]} 34... e2 {[%clk 0:00:20.7]} 35.
Re1 {[%clk 0:01:44.8]} 35... Qe5 {[%clk 0:00:18.7]} 36. Qd2 {[%clk 0:01:44.7]}
36... Qe4+ {[%clk 0:00:10.5]} 37. Ka1 {[%clk 0:01:43.4]} 37... Qc4 {[%clk
0:00:08.2]} 38. d6 {[%clk 0:01:42.6]} 38... Qe6 {[%clk 0:00:06.2]} 39. Qc3
{[%clk 0:01:38.4]} 1-0

[Event "*** Titled Tuesday 3|2 Blitz"]
[Site "Chess.com"]
[Date "2017.06.06"]
[Round "4"]
[White "Saitama_Hero"]
[Black "ehrenfeld"]
[Result "1-0"]
[WhiteElo "2241"]
[BlackElo "2388"]
[TimeControl "180+2"]
[EndTime "14:37:55 PDT"]
[Termination "Saitama_Hero won by resignation"]

1. d4 {[%clk 0:03:02]} 1... Nf6 {[%clk 0:03:00.3]} 2. Nc3 {[%clk 0:03:01.7]}
2... d5 {[%clk 0:02:59.3]} 3. Bg5 {[%clk 0:03:01.5]} 3... c5 {[%clk 0:03:00.1]}
4. Bxf6 {[%clk 0:02:55.7]} 4... exf6 {[%clk 0:03:00.6]} 5. e3 {[%clk 0:02:57.1]}
5... Be6 {[%clk 0:02:57.8]} 6. Nf3 {[%clk 0:02:48.2]} 6... Nc6 {[%clk
0:02:58.5]} 7. dxc5 {[%clk 0:02:47.4]} 7... Bxc5 {[%clk 0:02:59]} 8. Bd3 {[%clk
0:02:47.7]} 8... O-O {[%clk 0:02:59.3]} 9. a3 {[%clk 0:02:46.7]} 9... a6 {[%clk
0:02:46.5]} 10. O-O {[%clk 0:02:45.6]} 10... Qe7 {[%clk 0:02:47.4]} 11. Ne2
{[%clk 0:02:43.3]} 11... Bg4 {[%clk 0:02:43.4]} 12. Nf4 {[%clk 0:02:39.5]} 12...
Rfd8 {[%clk 0:02:33.9]} 13. h3 {[%clk 0:02:39.7]} 13... Be6 {[%clk 0:02:29.5]}
14. c3 {[%clk 0:02:36]} 14... Rac8 {[%clk 0:02:29.1]} 15. Nd4 {[%clk 0:02:35]}
15... Ne5 {[%clk 0:02:14.4]} 16. Bc2 {[%clk 0:02:13.4]} 16... g6 {[%clk
0:02:13.6]} 17. Qe2 {[%clk 0:02:02.1]} 17... Ba7 {[%clk 0:02:13]} 18. Rfd1
{[%clk 0:02:00.9]} 18... f5 {[%clk 0:02:07.8]} 19. Rab1 {[%clk 0:01:45.4]} 19...
Re8 {[%clk 0:02:03]} 20. Nf3 {[%clk 0:01:42.6]} 20... Nc4 {[%clk 0:01:02.5]} 21.
Nxd5 {[%clk 0:01:41.6]} 21... Bxd5 {[%clk 0:00:55.9]} 22. Rxd5 {[%clk
0:01:43.5]} 22... b5 {[%clk 0:00:42.8]} 23. Bb3 {[%clk 0:01:39]} 23... f4 {[%clk
0:00:37.3]} 24. e4 {[%clk 0:01:20.3]} 24... Qxe4 {[%clk 0:00:33.3]} 25. Qxe4
{[%clk 0:01:22.2]} 25... Rxe4 {[%clk 0:00:33.6]} 26. Rd7 {[%clk 0:01:24.1]}
26... Bc5 {[%clk 0:00:28.5]} 27. Rxf7 {[%clk 0:01:02]} 27... Re2 {[%clk
0:00:28.4]} 28. Rxf4 {[%clk 0:01:00.6]} 28... Bxf2+ {[%clk 0:00:24.5]} 29. Kf1
{[%clk 0:00:59]} 29... Rce8 {[%clk 0:00:17.9]} 30. Rxc4 {[%clk 0:00:58.5]} 30...
bxc4 {[%clk 0:00:14.7]} 31. Bxc4+ {[%clk 0:00:55.3]} 31... R2e6 {[%clk
0:00:12.7]} 32. Kxf2 {[%clk 0:00:53.6]} 1-0

[Event "*** Titled Tuesday 3|2 Blitz"]
[Site "Chess.com"]
[Date "2017.06.06"]
[Round "4"]
[White "pKiLz5Rn9b"]
[Black "Spartakus1975"]
[Result "0-1"]
[WhiteElo "2488"]
[BlackElo "2596"]
[TimeControl "180+2"]
[EndTime "14:38:02 PDT"]
[Termination "Spartakus1975 won by resignation"]

1. d4 {[%clk 0:03:02]} 1... d5 {[%clk 0:02:56.5]} 2. Nf3 {[%clk 0:03:02.6]} 2...
Nf6 {[%clk 0:02:55.5]} 3. e3 {[%clk 0:03:00.9]} 3... Bf5 {[%clk 0:02:49.5]} 4.
Bd3 {[%clk 0:02:56.4]} 4... Bxd3 {[%clk 0:02:43.1]} 5. Qxd3 {[%clk 0:02:57]}
5... c6 {[%clk 0:02:44.7]} 6. O-O {[%clk 0:02:58]} 6... e6 {[%clk 0:02:44]} 7.
c4 {[%clk 0:02:59]} 7... Nbd7 {[%clk 0:02:44.7]} 8. Nc3 {[%clk 0:03:00.3]} 8...
Be7 {[%clk 0:02:46]} 9. b3 {[%clk 0:03:01.5]} 9... O-O {[%clk 0:02:46.5]} 10.
Bb2 {[%clk 0:03:02.9]} 10... Re8 {[%clk 0:02:46.7]} 11. Rad1 {[%clk 0:03:02.4]}
11... Rc8 {[%clk 0:02:40.6]} 12. e4 {[%clk 0:03:02.4]} 12... dxe4 {[%clk
0:02:41.1]} 13. Nxe4 {[%clk 0:03:03.7]} 13... Nxe4 {[%clk 0:02:42.6]} 14. Qxe4
{[%clk 0:03:05.6]} 14... Qa5 {[%clk 0:02:42.7]} 15. a3 {[%clk 0:03:04.4]} 15...
Rcd8 {[%clk 0:02:40]} 16. Qe2 {[%clk 0:02:53.6]} 16... Qh5 {[%clk 0:02:37.6]}
17. h3 {[%clk 0:02:53.3]} 17... Bf6 {[%clk 0:02:36.8]} 18. Rfe1 {[%clk
0:02:45.5]} 18... Nf8 {[%clk 0:02:37.2]} 19. Rd3 {[%clk 0:02:27.7]} 19... Ng6
{[%clk 0:02:36.8]} 20. Qd2 {[%clk 0:02:23.3]} 20... Rd6 {[%clk 0:02:32.4]} 21.
Kh2 {[%clk 0:02:13.7]} 21... Nh4 {[%clk 0:02:22.9]} 22. Ne5 {[%clk 0:01:53.8]}
22... Red8 {[%clk 0:02:21.1]} 23. f4 {[%clk 0:01:09.6]} 23... Bxe5 {[%clk
0:02:11.6]} 24. Rxe5 {[%clk 0:01:02.5]} 24... Qh6 {[%clk 0:02:06.6]} 25. Qf2
{[%clk 0:00:38.8]} 25... Ng6 {[%clk 0:02:03.3]} 26. Rg5 {[%clk 0:00:36.8]} 26...
f6 {[%clk 0:01:56.8]} 27. Rg4 {[%clk 0:00:37.4]} 27... Qh5 {[%clk 0:01:45.6]}
28. Rf3 {[%clk 0:00:31.6]} 28... Qf5 {[%clk 0:01:46.1]} 29. Qe3 {[%clk
0:00:22.6]} 29... h5 {[%clk 0:01:40]} 30. Rgg3 {[%clk 0:00:23.4]} 30... h4
{[%clk 0:01:34.6]} 31. Rg4 {[%clk 0:00:23.9]} 31... c5 {[%clk 0:01:35.9]} 32.
dxc5 {[%clk 0:00:22.1]} 32... Rd3 {[%clk 0:01:35.4]} 33. Qe1 {[%clk 0:00:04]}
33... Rxf3 {[%clk 0:01:35.1]} 34. gxf3 {[%clk 0:00:05.9]} 34... Nxf4 {[%clk
0:01:32.8]} 35. Bc3 {[%clk 0:00:05.7]} 35... g5 {[%clk 0:01:26.7]} 36. b4 {[%clk
0:00:02.6]} 36... Rd3 {[%clk 0:01:21.7]} 37. Bb2 {[%clk 0:00:03.2]} 37... Rxf3
{[%clk 0:01:21.3]} 38. Kg1 {[%clk 0:00:03.7]} 38... Nxh3+ {[%clk 0:01:20.9]} 0-1

[Event "*** Titled Tuesday 3|2 Blitz"]
[Site "Chess.com"]
[Date "2017.06.06"]
[Round "4"]
[White "Ginger_GM"]
[Black "Rock700chess"]
[Result "1-0"]
[WhiteElo "2424"]
[BlackElo "2297"]
[TimeControl "180+2"]
[EndTime "14:38:08 PDT"]
[Termination "Ginger_GM won by resignation"]

1. d4 {[%clk 0:02:59.3]} 1... Nf6 {[%clk 0:03:00.6]} 2. Bf4 {[%clk 0:02:57.2]}
2... e6 {[%clk 0:03:00.6]} 3. Nf3 {[%clk 0:02:56.6]} 3... c5 {[%clk 0:03:01.3]}
4. e3 {[%clk 0:02:56.4]} 4... b6 {[%clk 0:03:02.1]} 5. Nbd2 {[%clk 0:02:56.5]}
5... Bb7 {[%clk 0:03:02.4]} 6. Nc4 {[%clk 0:02:57.3]} 6... d5 {[%clk 0:02:53.2]}
7. Nce5 {[%clk 0:02:56.7]} 7... Nbd7 {[%clk 0:02:45.6]} 8. Bb5 {[%clk 0:02:20]}
8... a6 {[%clk 0:02:23.5]} 9. Ng5 {[%clk 0:02:11.3]} 9... axb5 {[%clk
0:02:18.4]} 10. Nexf7 {[%clk 0:02:10.6]} 10... Qe7 {[%clk 0:01:36.4]} 11. Nd6+
{[%clk 0:01:58.2]} 11... Qxd6 {[%clk 0:01:37.3]} 12. Bxd6 {[%clk 0:01:58.6]}
12... Bxd6 {[%clk 0:01:39.2]} 13. Nxe6 {[%clk 0:01:59.4]} 13... Kf7 {[%clk
0:01:06.3]} 14. Ng5+ {[%clk 0:01:57.7]} 14... Ke7 {[%clk 0:01:07.8]} 15. O-O
{[%clk 0:01:52.4]} 15... h6 {[%clk 0:01:06.6]} 16. Nf3 {[%clk 0:01:52.2]} 16...
Rhe8 {[%clk 0:01:02.5]} 17. Nh4 {[%clk 0:01:51.2]} 17... Kf7 {[%clk 0:00:57.4]}
18. Nf5 {[%clk 0:01:48.8]} 18... Bf8 {[%clk 0:00:58.6]} 19. Qd3 {[%clk
0:01:37.8]} 19... Ba6 {[%clk 0:00:44.5]} 20. Qd1 {[%clk 0:01:36.1]} 20... b4
{[%clk 0:00:44.1]} 21. Re1 {[%clk 0:01:36.5]} 21... Nb8 {[%clk 0:00:23.8]} 22.
a3 {[%clk 0:01:28.6]} 22... Nc6 {[%clk 0:00:24.4]} 23. axb4 {[%clk 0:01:28.8]}
23... Nxb4 {[%clk 0:00:23.7]} 24. c3 {[%clk 0:01:24.8]} 24... Nd3 {[%clk
0:00:18.8]} 25. Rxa6 {[%clk 0:01:22.7]} 25... Nxe1 {[%clk 0:00:18.7]} 26. Rxa8
{[%clk 0:01:22.4]} 26... Rxa8 {[%clk 0:00:20.3]} 27. Qxe1 {[%clk 0:01:22.5]}
27... Ra2 {[%clk 0:00:19.1]} 28. Qb1 {[%clk 0:01:22.1]} 28... Ra5 {[%clk
0:00:17.8]} 29. h3 {[%clk 0:01:19.5]} 29... c4 {[%clk 0:00:17.2]} 30. f3 {[%clk
0:01:18.6]} 30... b5 {[%clk 0:00:18.7]} 31. Nh4 {[%clk 0:01:18.4]} 31... b4
{[%clk 0:00:17.3]} 32. Qg6+ {[%clk 0:01:17.9]} 32... Kg8 {[%clk 0:00:18.4]} 33.
Nf5 {[%clk 0:01:18.4]} 33... Kh8 {[%clk 0:00:18.2]} 34. Nxh6 {[%clk 0:01:17.8]}
34... gxh6 {[%clk 0:00:20.1]} 35. Qxf6+ {[%clk 0:01:18.2]} 35... Kg8 {[%clk
0:00:20.4]} 36. Qg6+ {[%clk 0:01:14.7]} 36... Kh8 {[%clk 0:00:21.2]} 37. e4
{[%clk 0:01:11.8]} 37... bxc3 {[%clk 0:00:21.8]} 38. bxc3 {[%clk 0:01:11.8]}
38... Ra1+ {[%clk 0:00:23.4]} 39. Kh2 {[%clk 0:01:11.7]} 39... dxe4 {[%clk
0:00:21.3]} 40. fxe4 {[%clk 0:01:11.7]} 40... Ra3 {[%clk 0:00:22.1]} 41. Qf6+
{[%clk 0:01:10.8]} 41... Kg8 {[%clk 0:00:23.1]} 42. Qe6+ {[%clk 0:01:10.9]} 1-0

[Event "*** Titled Tuesday 3|2 Blitz"]
[Site "Chess.com"]
[Date "2017.06.06"]
[Round "4"]
[White "1lec"]
[Black "aa175"]
[Result "1-0"]
[WhiteElo "2031"]
[BlackElo "1865"]
[TimeControl "180+2"]
[EndTime "14:38:15 PDT"]
[Termination "1lec won on time"]

1. e4 {[%clk 0:03:02]} 1... e5 {[%clk 0:02:59.5]} 2. Nf3 {[%clk 0:03:02.9]} 2...
Nc6 {[%clk 0:02:59.6]} 3. Bb5 {[%clk 0:03:04.4]} 3... Nf6 {[%clk 0:03:00.5]} 4.
O-O {[%clk 0:03:04.9]} 4... Nxe4 {[%clk 0:02:39.2]} 5. Re1 {[%clk 0:03:06]} 5...
Nd6 {[%clk 0:02:34.6]} 6. Nxe5 {[%clk 0:03:06.5]} 6... Be7 {[%clk 0:02:30.1]} 7.
Bf1 {[%clk 0:03:06.6]} 7... Nxe5 {[%clk 0:02:27.2]} 8. Rxe5 {[%clk 0:03:08.5]}
8... O-O {[%clk 0:02:23.3]} 9. d4 {[%clk 0:03:09.4]} 9... Bf6 {[%clk 0:02:15.6]}
10. Re1 {[%clk 0:03:10.1]} 10... Nf5 {[%clk 0:02:09.8]} 11. c3 {[%clk
0:03:11.2]} 11... d5 {[%clk 0:02:05]} 12. Bf4 {[%clk 0:03:09.5]} 12... c6 {[%clk
0:02:01.3]} 13. Nd2 {[%clk 0:03:06.9]} 13... Nh4 {[%clk 0:01:57.9]} 14. Nf3
{[%clk 0:02:59.8]} 14... Bg4 {[%clk 0:01:45.6]} 15. Be2 {[%clk 0:02:49.1]} 15...
Nxf3+ {[%clk 0:01:32]} 16. Bxf3 {[%clk 0:02:50.1]} 16... Bxf3 {[%clk 0:01:31.2]}
17. Qxf3 {[%clk 0:02:52]} 17... Re8 {[%clk 0:01:27.7]} 18. Be5 {[%clk
0:02:39.6]} 18... Bxe5 {[%clk 0:01:14.5]} 19. dxe5 {[%clk 0:02:41.5]} 19... Qc7
{[%clk 0:01:13.9]} 20. Qg3 {[%clk 0:02:25.6]} 20... Re6 {[%clk 0:01:14.1]} 21.
f4 {[%clk 0:02:25.9]} 21... Qb6+ {[%clk 0:01:10.2]} 22. Kh1 {[%clk 0:02:23.6]}
22... f5 {[%clk 0:00:33]} 23. exf6 {[%clk 0:02:19.9]} 23... Rxf6 {[%clk
0:00:33.4]} 24. Re2 {[%clk 0:01:42.3]} 24... Raf8 {[%clk 0:00:29.5]} 25. Rf1
{[%clk 0:01:41.9]} 25... Qc7 {[%clk 0:00:25.4]} 26. Ref2 {[%clk 0:01:38.9]}
26... h6 {[%clk 0:00:15.4]} 27. h4 {[%clk 0:01:37.5]} 27... R6f7 {[%clk
0:00:14.8]} 28. Qg4 {[%clk 0:01:36.6]} 28... Qd7 {[%clk 0:00:14.8]} 29. f5
{[%clk 0:01:34.1]} 29... Re8 {[%clk 0:00:13.1]} 30. Qf4 {[%clk 0:01:18.6]} 30...
Re4 {[%clk 0:00:12.6]} 31. Qg3 {[%clk 0:01:02.8]} 31... Re8 {[%clk 0:00:10.6]}
32. f6 {[%clk 0:00:39.7]} 32... Qc7 {[%clk 0:00:10.8]} 33. Qxc7 {[%clk
0:00:38.1]} 33... Rxc7 {[%clk 0:00:12.1]} 34. f7+ {[%clk 0:00:39.7]} 1-0